[Event "Titled Tuesday Blitz May 4 2021"]
[White "Sadhwani, Raunak"]
[Black "Yeremyan, Alen"]
[WhiteFideId "35093487"]
[BlackFideId "13308998"]
[WhiteElo "2514"]
[BlackElo "2158"]
[Result "1-0"]
[Round "06"]
[TimeControl "180+1"]
[Date "2021.05.04"]
[WhiteClock "0:01:44"]
[BlackClock "0:01:31"]

1. b3 {[%clk 0:03:00]}  Nf6 {[%clk 0:02:59]} 2. Bb2 {[%clk 0:03:01]}  e6 {[%clk 0:02:58]} 3. Nf3 {[%clk 0:03:01]}  Be7 {[%clk 0:02:59]} 4. g3 {[%clk 0:03:01]}  O-O {[%clk 0:02:59]} 5. Bg2 {[%clk 0:03:02]}  d5 {[%clk 0:03:00]} 6. O-O {[%clk 0:03:02]}  c5 {[%clk 0:03:01]} 7. e3 {[%clk 0:02:58]}  Nc6 {[%clk 0:03:00]} 8. d3 {[%clk 0:02:56]}  b6 {[%clk 0:02:59]} 9. Nbd2 {[%clk 0:02:53]}  Bb7 {[%clk 0:03:00]} 10. Re1 {[%clk 0:02:50]}  Nd7 {[%clk 0:02:59]} 11. e4 {[%clk 0:02:50]}  d4 {[%clk 0:02:59]} 12. h4 {[%clk 0:02:44]}  b5 {[%clk 0:02:49]} 13. e5 {[%clk 0:02:44]}  Qc7 {[%clk 0:02:47]} 14. Qe2 {[%clk 0:02:44]}  Rae8 {[%clk 0:02:41]} 15. h5 {[%clk 0:02:45]}  h6 {[%clk 0:02:41]} 16. Nf1 {[%clk 0:02:44]}  Bd8 {[%clk 0:02:35]} 17. N1h2 {[%clk 0:02:44]}  f5 {[%clk 0:02:36]} 18. exf6 {[%clk 0:02:44]}  Nxf6 {[%clk 0:02:36]} 19. Nh4 {[%clk 0:02:39]}  e5 {[%clk 0:02:13]} 20. Ng6 {[%clk 0:02:38]}  Rf7 {[%clk 0:02:14]} 21. f4 {[%clk 0:02:34]}  e4 {[%clk 0:01:48]} 22. dxe4 {[%clk 0:02:25]}  Nd5 {[%clk 0:01:48]} 23. Ng4 {[%clk 0:02:11]}  Nc3 {[%clk 0:01:47]} 24. Bxc3 {[%clk 0:01:56]}  dxc3 {[%clk 0:01:48]} 25. Qxb5 {[%clk 0:01:56]}  Qc8 {[%clk 0:01:35]} 26. N4e5 {[%clk 0:01:44]}  Nxe5 {[%clk 0:01:31]} 27. Qxe8+ {[%clk 0:01:44]} 1-0


[Site "https://www.chess.com"]

[Event "Titled Tuesday Blitz May 4 2021"]
[White "Sanal, Vahap"]
[Black "Quintiliano Pinto, Renato R."]
[WhiteFideId "6300545"]
[BlackFideId "2117568"]
[WhiteElo "2507"]
[BlackElo "2439"]
[Result "1-0"]
[Round "06"]
[TimeControl "180+1"]
[Date "2021.05.04"]
[WhiteClock "0:01:29"]
[BlackClock "0:00:10"]

1. e4 {[%clk 0:02:59]}  c5 {[%clk 0:02:59]} 2. Nf3 {[%clk 0:02:59]}  d6 {[%clk 0:03:00]} 3. d4 {[%clk 0:02:58]}  cxd4 {[%clk 0:03:00]} 4. Nxd4 {[%clk 0:02:59]}  Nf6 {[%clk 0:03:01]} 5. Nc3 {[%clk 0:02:59]}  a6 {[%clk 0:03:01]} 6. a3 {[%clk 0:02:59]}  e5 {[%clk 0:02:58]} 7. Nf5 {[%clk 0:02:59]}  d5 {[%clk 0:02:48]} 8. Bg5 {[%clk 0:02:56]}  d4 {[%clk 0:02:48]} 9. Bxf6 {[%clk 0:02:56]}  gxf6 {[%clk 0:02:49]} 10. Nb1 {[%clk 0:02:56]}  Bxf5 {[%clk 0:02:05]} 11. exf5 {[%clk 0:02:56]}  Qa5+ {[%clk 0:01:56]} 12. Nd2 {[%clk 0:02:55]}  Nc6 {[%clk 0:01:53]} 13. Bd3 {[%clk 0:02:52]}  Bh6 {[%clk 0:01:50]} 14. b4 {[%clk 0:02:48]}  Bxd2+ {[%clk 0:01:49]} 15. Qxd2 {[%clk 0:02:48]}  Qc7 {[%clk 0:01:49]} 16. O-O {[%clk 0:02:47]}  O-O {[%clk 0:01:47]} 17. Qh6 {[%clk 0:02:45]}  Qe7 {[%clk 0:01:38]} 18. Rae1 {[%clk 0:02:36]}  Kh8 {[%clk 0:01:35]} 19. Re4 {[%clk 0:02:24]}  Rg8 {[%clk 0:01:35]} 20. Rh4 {[%clk 0:02:23]}  Rg7 {[%clk 0:01:35]} 21. Be4 {[%clk 0:02:23]}  Rd8 {[%clk 0:01:13]} 22. g3 {[%clk 0:02:21]}  Rd6 {[%clk 0:01:10]} 23. Rd1 {[%clk 0:02:21]}  Nb8 {[%clk 0:01:09]} 24. Bf3 {[%clk 0:02:08]}  b6 {[%clk 0:01:01]} 25. c3 {[%clk 0:01:49]}  dxc3 {[%clk 0:00:40]} 26. Rc1 {[%clk 0:01:47]}  Qc7 {[%clk 0:00:25]} 27. Qe3 {[%clk 0:01:43]}  c2 {[%clk 0:00:25]} 28. Kg2 {[%clk 0:01:42]}  Nd7 {[%clk 0:00:25]} 29. Be4 {[%clk 0:01:42]}  Rd4 {[%clk 0:00:22]} 30. Rxc2 {[%clk 0:01:41]}  Qd8 {[%clk 0:00:20]} 31. Bb7 {[%clk 0:01:37]}  Rxh4 {[%clk 0:00:17]} 32. Rc8 {[%clk 0:01:35]}  Qxc8 {[%clk 0:00:17]} 33. Bxc8 {[%clk 0:01:36]}  Nf8 {[%clk 0:00:17]} 34. Qxb6 {[%clk 0:01:36]}  Rd4 {[%clk 0:00:15]} 35. Qxf6 {[%clk 0:01:32]}  Kg8 {[%clk 0:00:13]} 36. Qxe5 {[%clk 0:01:32]}  Rd8 {[%clk 0:00:11]} 37. f6 {[%clk 0:01:32]}  Rg6 {[%clk 0:00:10]} 38. Bf5 {[%clk 0:01:32]}  Rh6 {[%clk 0:00:10]} 39. Qf4 {[%clk 0:01:29]} 1-0


[Site "https://www.chess.com"]

[Event "Titled Tuesday Blitz May 4 2021"]
[White "Sanchez Alvares, Kelvin Antonio"]
[Black "Vivas Zamora, Fabian Ernesto"]
[WhiteFideId "3906680"]
[BlackFideId "3902480"]
[WhiteElo "2247"]
[BlackElo "1966"]
[Result "1-0"]
[Round "06"]
[TimeControl "180+1"]
[Date "2021.05.04"]
[WhiteClock "0:01:08"]
[BlackClock "0:00:01"]

1. e4 {[%clk 0:03:00]}  e5 {[%clk 0:02:59]} 2. Nf3 {[%clk 0:02:58]}  Nc6 {[%clk 0:02:58]} 3. Bc4 {[%clk 0:02:57]}  Nf6 {[%clk 0:02:58]} 4. d3 {[%clk 0:02:56]}  Bc5 {[%clk 0:02:58]} 5. h3 {[%clk 0:02:51]}  O-O {[%clk 0:02:51]} 6. c3 {[%clk 0:02:49]}  a5 {[%clk 0:02:37]} 7. Bg5 {[%clk 0:02:39]}  Be7 {[%clk 0:02:31]} 8. Nbd2 {[%clk 0:02:32]}  d5 {[%clk 0:02:25]} 9. Bxf6 {[%clk 0:02:10]}  dxc4 {[%clk 0:02:04]} 10. Bxe7 {[%clk 0:02:09]}  Qxe7 {[%clk 0:02:00]} 11. Nxc4 {[%clk 0:02:07]}  f5 {[%clk 0:01:35]} 12. Ne3 {[%clk 0:01:59]}  f4 {[%clk 0:01:23]} 13. Nd5 {[%clk 0:01:59]}  Qd6 {[%clk 0:01:22]} 14. Qb3 {[%clk 0:01:56]}  Be6 {[%clk 0:01:17]} 15. Qxb7 {[%clk 0:01:51]}  Bxd5 {[%clk 0:01:09]} 16. exd5 {[%clk 0:01:46]}  Qxd5 {[%clk 0:01:08]} 17. Qb3 {[%clk 0:01:45]}  Qxb3 {[%clk 0:00:45]} 18. axb3 {[%clk 0:01:46]}  Rab8 {[%clk 0:00:45]} 19. Nd2 {[%clk 0:01:45]}  Rfd8 {[%clk 0:00:40]} 20. Ke2 {[%clk 0:01:44]}  Rb5 {[%clk 0:00:40]} 21. Rhd1 {[%clk 0:01:36]}  Nb8 {[%clk 0:00:22]} 22. Ra4 {[%clk 0:01:32]}  Nd7 {[%clk 0:00:21]} 23. c4 {[%clk 0:01:27]}  Rc5 {[%clk 0:00:07]} 24. Ne4 {[%clk 0:01:25]}  Rc6 {[%clk 0:00:04]} 25. Rxa5 {[%clk 0:01:25]}  Rb8 {[%clk 0:00:04]} 26. Rd5 {[%clk 0:01:14]}  Nf6 {[%clk 0:00:01]} 27. Rc5 {[%clk 0:01:08]} 1-0


[Site "https://www.chess.com"]

[Event "Titled Tuesday Blitz May 4 2021"]
[White "Sargissyan, Sargis"]
[Black "Dovbnia, Nikita"]
[WhiteFideId "13303210"]
[BlackFideId "54104599"]
[WhiteElo "2174"]
[BlackElo "2056"]
[Result "1-0"]
[Round "06"]
[TimeControl "180+1"]
[Date "2021.05.04"]
[WhiteClock "0:00:15"]
[BlackClock "0:00:03"]

1. e4 {[%clk 0:02:57]}  c5 {[%clk 0:03:00]} 2. Nf3 {[%clk 0:02:56]}  d6 {[%clk 0:03:00]} 3. d4 {[%clk 0:02:57]}  cxd4 {[%clk 0:03:01]} 4. Nxd4 {[%clk 0:02:56]}  Nf6 {[%clk 0:03:02]} 5. Nc3 {[%clk 0:02:56]}  a6 {[%clk 0:03:02]} 6. Be3 {[%clk 0:02:56]}  e5 {[%clk 0:03:03]} 7. Nb3 {[%clk 0:02:56]}  Be6 {[%clk 0:03:03]} 8. f3 {[%clk 0:02:52]}  h5 {[%clk 0:03:03]} 9. Qd2 {[%clk 0:02:52]}  Nbd7 {[%clk 0:03:02]} 10. O-O-O {[%clk 0:02:52]}  Be7 {[%clk 0:03:02]} 11. Kb1 {[%clk 0:02:47]}  b5 {[%clk 0:03:02]} 12. Be2 {[%clk 0:02:45]}  Nb6 {[%clk 0:02:55]} 13. h3 {[%clk 0:02:42]}  Nc4 {[%clk 0:02:54]} 14. Bxc4 {[%clk 0:02:41]}  bxc4 {[%clk 0:02:55]} 15. Nc1 {[%clk 0:02:39]}  h4 {[%clk 0:02:44]} 16. f4 {[%clk 0:02:36]}  Rb8 {[%clk 0:02:15]} 17. fxe5 {[%clk 0:02:23]}  dxe5 {[%clk 0:02:16]} 18. Qxd8+ {[%clk 0:02:09]}  Bxd8 {[%clk 0:02:17]} 19. Bg5 {[%clk 0:01:59]}  Rh5 {[%clk 0:01:43]} 20. Bxf6 {[%clk 0:01:57]}  gxf6 {[%clk 0:01:42]} 21. Nd5 {[%clk 0:01:56]}  Rg5 {[%clk 0:01:35]} 22. Rhg1 {[%clk 0:01:46]}  f5 {[%clk 0:01:26]} 23. exf5 {[%clk 0:01:42]}  Bxf5 {[%clk 0:01:16]} 24. Ne3 {[%clk 0:01:42]}  Be6 {[%clk 0:01:14]} 25. Rge1 {[%clk 0:01:39]}  Ba5 {[%clk 0:01:11]} 26. Rf1 {[%clk 0:01:25]}  Bc3 {[%clk 0:01:03]} 27. b3 {[%clk 0:01:25]}  a5 {[%clk 0:00:57]} 28. Ne2 {[%clk 0:01:23]}  Bb4 {[%clk 0:00:41]} 29. Nd5 {[%clk 0:01:23]}  Bxd5 {[%clk 0:00:36]} 30. Rxd5 {[%clk 0:01:24]}  cxb3 {[%clk 0:00:34]} 31. axb3 {[%clk 0:01:22]}  Rxg2 {[%clk 0:00:30]} 32. Rxe5+ {[%clk 0:01:22]}  Kf8 {[%clk 0:00:21]} 33. Nf4 {[%clk 0:01:12]}  Rg3 {[%clk 0:00:18]} 34. Nh5 {[%clk 0:01:07]}  Rxh3 {[%clk 0:00:13]} 35. Nf6 {[%clk 0:01:07]}  Rd8 {[%clk 0:00:09]} 36. Rg1 {[%clk 0:01:03]}  Rg3 {[%clk 0:00:07]} 37. Rh1 {[%clk 0:01:01]}  h3 {[%clk 0:00:07]} 38. Nh5 {[%clk 0:01:01]}  Rg2 {[%clk 0:00:04]} 39. Nf4 {[%clk 0:00:56]}  Rf2 {[%clk 0:00:01]} 40. Nd3 {[%clk 0:00:56]}  Rg2 {[%clk 0:00:01]} 41. Nxb4 {[%clk 0:00:52]}  axb4 {[%clk 0:00:02]} 42. Rxh3 {[%clk 0:00:52]}  Rg1+ {[%clk 0:00:03]} 43. Kb2 {[%clk 0:00:52]}  Rdd1 {[%clk 0:00:04]} 44. c3 {[%clk 0:00:47]}  Rb1+ {[%clk 0:00:03]} 45. Kc2 {[%clk 0:00:47]}  Rgc1+ {[%clk 0:00:02]} 46. Kd2 {[%clk 0:00:47]}  Rd1+ {[%clk 0:00:02]} 47. Ke3 {[%clk 0:00:38]}  bxc3 {[%clk 0:00:02]} 48. Rc5 {[%clk 0:00:37]}  Re1+ {[%clk 0:00:01]} 49. Kd3 {[%clk 0:00:35]}  Rbd1+ {[%clk 0:00:01]} 50. Kxc3 {[%clk 0:00:34]}  Rc1+ {[%clk 0:00:02]} 51. Kb4 {[%clk 0:00:34]}  Rxc5 {[%clk 0:00:03]} 52. Kxc5 {[%clk 0:00:34]}  f5 {[%clk 0:00:03]} 53. b4 {[%clk 0:00:34]}  Rc1+ {[%clk 0:00:04]} 54. Kd5 {[%clk 0:00:34]}  Rb1 {[%clk 0:00:05]} 55. Kc5 {[%clk 0:00:34]}  f4 {[%clk 0:00:05]} 56. b5 {[%clk 0:00:34]}  Ke7 {[%clk 0:00:05]} 57. Rf3 {[%clk 0:00:33]}  Rc1+ {[%clk 0:00:05]} 58. Kb6 {[%clk 0:00:33]}  Rc4 {[%clk 0:00:04]} 59. Ka6 {[%clk 0:00:33]}  Ke6 {[%clk 0:00:04]} 60. b6 {[%clk 0:00:33]}  Ke5 {[%clk 0:00:04]} 61. b7 {[%clk 0:00:33]}  Rb4 {[%clk 0:00:04]} 62. Rc3 {[%clk 0:00:29]}  Ke4 {[%clk 0:00:03]} 63. Rc6 {[%clk 0:00:26]}  f3 {[%clk 0:00:03]} 64. Rb6 {[%clk 0:00:25]}  Ra4+ {[%clk 0:00:03]} 65. Kb5 {[%clk 0:00:25]}  f2 {[%clk 0:00:03]} 66. Kxa4 {[%clk 0:00:18]}  f1=Q {[%clk 0:00:03]} 67. b8=Q {[%clk 0:00:19]}  Qa1+ {[%clk 0:00:03]} 68. Kb5 {[%clk 0:00:19]}  Qb2+ {[%clk 0:00:03]} 69. Kc6 {[%clk 0:00:19]}  Qc3+ {[%clk 0:00:03]} 70. Kb7 {[%clk 0:00:19]}  Qg7+ {[%clk 0:00:02]} 71. Qc7 {[%clk 0:00:14]}  Qxc7+ {[%clk 0:00:02]} 72. Kxc7 {[%clk 0:00:15]}  Kd5 {[%clk 0:00:02]} 73. Kd7 {[%clk 0:00:15]}  Kc5 {[%clk 0:00:03]} 1-0


[Site "https://www.chess.com"]

[Event "Titled Tuesday Blitz May 4 2021"]
[White "Sarkar, Justin"]
[Black "Kapitanchuk, Tomas"]
[WhiteFideId "2010011"]
[BlackFideId "135046"]
[WhiteElo "2140"]
[BlackElo "1955"]
[Result "0-1"]
[Round "06"]
[TimeControl "180+1"]
[Date "2021.05.04"]
[WhiteClock "0:00:01"]
[BlackClock "0:00:27"]

1. e4 {[%clk 0:02:43]}  c5 {[%clk 0:02:57]} 2. Nf3 {[%clk 0:02:41]}  e6 {[%clk 0:02:58]} 3. d4 {[%clk 0:02:40]}  cxd4 {[%clk 0:02:59]} 4. Nxd4 {[%clk 0:02:40]}  Nc6 {[%clk 0:02:59]} 5. Nc3 {[%clk 0:02:36]}  Qc7 {[%clk 0:02:59]} 6. Be3 {[%clk 0:02:21]}  a6 {[%clk 0:02:59]} 7. Qf3 {[%clk 0:02:16]}  d6 {[%clk 0:02:57]} 8. O-O-O {[%clk 0:02:09]}  Bd7 {[%clk 0:02:57]} 9. Qg3 {[%clk 0:02:01]}  Nf6 {[%clk 0:02:55]} 10. Nxc6 {[%clk 0:01:52]}  Bxc6 {[%clk 0:02:53]} 11. f3 {[%clk 0:01:52]}  b5 {[%clk 0:02:39]} 12. Kb1 {[%clk 0:01:48]}  b4 {[%clk 0:02:38]} 13. Ne2 {[%clk 0:01:47]}  Rc8 {[%clk 0:02:31]} 14. Nd4 {[%clk 0:01:43]}  Bb7 {[%clk 0:02:30]} 15. Rc1 {[%clk 0:01:36]}  g6 {[%clk 0:02:27]} 16. Bd3 {[%clk 0:01:20]}  Be7 {[%clk 0:02:22]} 17. c3 {[%clk 0:01:15]}  bxc3 {[%clk 0:01:47]} 18. Rxc3 {[%clk 0:01:16]}  Qb6 {[%clk 0:01:38]} 19. Nxe6 {[%clk 0:00:47]}  Qxe3 {[%clk 0:01:26]} 20. Bb5+ {[%clk 0:00:34]}  axb5 {[%clk 0:01:27]} 21. Rxe3 {[%clk 0:00:16]}  fxe6 {[%clk 0:01:27]} 22. e5 {[%clk 0:00:14]}  Nd5 {[%clk 0:01:22]} 23. Re2 {[%clk 0:00:08]}  Kd7 {[%clk 0:01:09]} 24. Rhe1 {[%clk 0:00:04]}  Rhe8 {[%clk 0:01:01]} 25. exd6 {[%clk 0:00:04]}  Bxd6 {[%clk 0:01:02]} 26. Qg4 {[%clk 0:00:03]}  Nf4 {[%clk 0:00:57]} 27. Rd2 {[%clk 0:00:03]}  Nd5 {[%clk 0:00:47]} 28. Qh3 {[%clk 0:00:04]}  Re7 {[%clk 0:00:43]} 29. g3 {[%clk 0:00:04]}  Rce8 {[%clk 0:00:39]} 30. Rde2 {[%clk 0:00:04]}  Nc7 {[%clk 0:00:34]} 31. Rd1 {[%clk 0:00:04]}  Bd5 {[%clk 0:00:34]} 32. Red2 {[%clk 0:00:04]}  Kd8 {[%clk 0:00:32]} 33. f4 {[%clk 0:00:04]}  Be4+ {[%clk 0:00:32]} 34. Ka1 {[%clk 0:00:04]}  Bd5 {[%clk 0:00:33]} 35. Qg4 {[%clk 0:00:03]}  Rd7 {[%clk 0:00:33]} 36. Qe2 {[%clk 0:00:03]}  Ree7 {[%clk 0:00:29]} 37. Rc1 {[%clk 0:00:03]}  Ke8 {[%clk 0:00:29]} 38. Rdc2 {[%clk 0:00:03]}  Kf8 {[%clk 0:00:28]} 39. Qe3 {[%clk 0:00:03]}  Ne8 {[%clk 0:00:28]} 40. Qb6 {[%clk 0:00:02]}  Ra7 {[%clk 0:00:27]} 41. a3 {[%clk 0:00:01]}  b4 {[%clk 0:00:27]} 0-1


[Site "https://www.chess.com"]

[Event "Titled Tuesday Blitz May 4 2021"]
[White "Schmidt, Harald"]
[Black "Baches Garcia, Guillermo"]
[WhiteFideId "4648358"]
[BlackFideId "2209764"]
[WhiteElo "2280"]
[BlackElo "2445"]
[Result "0-1"]
[Round "06"]
[TimeControl "180+1"]
[Date "2021.05.04"]
[WhiteClock "0:00:46"]
[BlackClock "0:01:03"]

1. a3 {[%clk 0:03:00]}  d5 {[%clk 0:02:59]} 2. e3 {[%clk 0:02:58]}  g6 {[%clk 0:02:59]} 3. c4 {[%clk 0:02:56]}  c6 {[%clk 0:02:55]} 4. Nc3 {[%clk 0:02:51]}  Bg7 {[%clk 0:02:54]} 5. d4 {[%clk 0:02:50]}  Nf6 {[%clk 0:02:51]} 6. cxd5 {[%clk 0:02:46]}  cxd5 {[%clk 0:02:48]} 7. h3 {[%clk 0:02:45]}  O-O {[%clk 0:02:48]} 8. Bd3 {[%clk 0:02:45]}  Nc6 {[%clk 0:02:43]} 9. Nf3 {[%clk 0:02:45]}  b6 {[%clk 0:02:27]} 10. O-O {[%clk 0:02:42]}  Bb7 {[%clk 0:02:27]} 11. Bd2 {[%clk 0:02:38]}  Rc8 {[%clk 0:02:27]} 12. Rc1 {[%clk 0:02:37]}  Na5 {[%clk 0:02:24]} 13. Qa4 {[%clk 0:02:26]}  Nc4 {[%clk 0:02:19]} 14. Bxc4 {[%clk 0:02:16]}  dxc4 {[%clk 0:02:19]} 15. Qxa7 {[%clk 0:02:11]}  Bxf3 {[%clk 0:02:06]} 16. gxf3 {[%clk 0:02:11]}  Nd5 {[%clk 0:02:01]} 17. Nxd5 {[%clk 0:01:57]}  Qxd5 {[%clk 0:02:01]} 18. Qxe7 {[%clk 0:01:48]}  Qxf3 {[%clk 0:01:55]} 19. Qh4 {[%clk 0:01:48]}  Rfe8 {[%clk 0:01:37]} 20. Qg4 {[%clk 0:01:45]}  Qd5 {[%clk 0:01:31]} 21. Qg2 {[%clk 0:01:40]}  Re4 {[%clk 0:01:28]} 22. Bc3 {[%clk 0:01:31]}  Rce8 {[%clk 0:01:25]} 23. Rce1 {[%clk 0:01:24]}  b5 {[%clk 0:01:22]} 24. Bd2 {[%clk 0:01:17]}  Qd7 {[%clk 0:01:16]} 25. f3 {[%clk 0:01:11]}  R4e6 {[%clk 0:01:14]} 26. Re2 {[%clk 0:01:04]}  Bxd4 {[%clk 0:01:12]} 27. Bc1 {[%clk 0:00:52]}  Bxe3+ {[%clk 0:01:09]} 28. Bxe3 {[%clk 0:00:51]}  Rxe3 {[%clk 0:01:09]} 29. Rfe1 {[%clk 0:00:47]}  Rxe2 {[%clk 0:01:03]} 30. Rxe2 {[%clk 0:00:46]}  Qd1+ {[%clk 0:01:03]} 0-1


[Site "https://www.chess.com"]

[Event "Titled Tuesday Blitz May 4 2021"]
[White "Sellitti, Federico"]
[Black "Royal, Shreyas"]
[WhiteFideId "821829"]
[BlackFideId "448869"]
[WhiteElo "2611"]
[BlackElo "1931"]
[Result "1-0"]
[Round "06"]
[TimeControl "180+1"]
[Date "2021.05.04"]
[WhiteClock "0:01:08"]
[BlackClock "0:01:49"]

1. e4 {[%clk 0:03:00]}  e5 {[%clk 0:02:59]} 2. Nc3 {[%clk 0:02:59]}  Nf6 {[%clk 0:02:59]} 3. f4 {[%clk 0:02:58]}  d5 {[%clk 0:02:58]} 4. fxe5 {[%clk 0:02:58]}  Nxe4 {[%clk 0:02:58]} 5. Qf3 {[%clk 0:02:58]}  Nxc3 {[%clk 0:02:55]} 6. dxc3 {[%clk 0:02:59]}  c5 {[%clk 0:02:55]} 7. Qg3 {[%clk 0:02:57]}  Be6 {[%clk 0:02:52]} 8. Nh3 {[%clk 0:02:41]}  Nc6 {[%clk 0:02:44]} 9. Nf4 {[%clk 0:02:38]}  Bf5 {[%clk 0:02:41]} 10. Bb5 {[%clk 0:02:24]}  a6 {[%clk 0:02:34]} 11. Bxc6+ {[%clk 0:02:23]}  bxc6 {[%clk 0:02:35]} 12. O-O {[%clk 0:02:23]}  Qd7 {[%clk 0:02:30]} 13. Bd2 {[%clk 0:01:52]}  g6 {[%clk 0:02:22]} 14. Rae1 {[%clk 0:01:17]}  Bg7 {[%clk 0:02:19]} 15. e6 {[%clk 0:01:13]}  fxe6 {[%clk 0:02:18]} 16. Nxe6 {[%clk 0:01:13]}  Bxe6 {[%clk 0:02:12]} 17. Rxe6+ {[%clk 0:01:12]}  Qxe6 {[%clk 0:02:01]} 18. Re1 {[%clk 0:01:12]}  Qxe1+ {[%clk 0:01:55]} 19. Qxe1+ {[%clk 0:01:13]}  Kd7 {[%clk 0:01:56]} 20. Qf2 {[%clk 0:01:11]}  d4 {[%clk 0:01:52]} 21. Qf7+ {[%clk 0:01:10]}  Kd6 {[%clk 0:01:50]} 22. Bf4+ {[%clk 0:01:09]}  Be5 {[%clk 0:01:49]} 23. Qf6+ {[%clk 0:01:08]}  Kd7 {[%clk 0:01:50]} 24. Qxe5 {[%clk 0:01:08]}  Rae8 {[%clk 0:01:49]} 1-0


[Site "https://www.chess.com"]

[Event "Titled Tuesday Blitz May 4 2021"]
[White "Senthil Maran K"]
[Black "Arabidze, Meri"]
[WhiteFideId "25035681"]
[BlackFideId "13604040"]
[WhiteElo "2194"]
[BlackElo "2432"]
[Result "0-1"]
[Round "06"]
[TimeControl "180+1"]
[Date "2021.05.04"]
[WhiteClock "0:00:01"]
[BlackClock "0:00:45"]

1. d4 {[%clk 0:03:00]}  d5 {[%clk 0:02:59]} 2. c4 {[%clk 0:02:59]}  e6 {[%clk 0:02:59]} 3. Nf3 {[%clk 0:02:59]}  Nf6 {[%clk 0:02:59]} 4. g3 {[%clk 0:03:00]}  Bb4+ {[%clk 0:02:57]} 5. Bd2 {[%clk 0:03:00]}  Be7 {[%clk 0:02:57]} 6. Bg2 {[%clk 0:03:00]}  O-O {[%clk 0:02:58]} 7. O-O {[%clk 0:03:00]}  Nbd7 {[%clk 0:02:58]} 8. Qc2 {[%clk 0:03:00]}  Ne4 {[%clk 0:02:58]} 9. Nc3 {[%clk 0:02:57]}  Nxd2 {[%clk 0:02:57]} 10. Nxd2 {[%clk 0:02:58]}  c6 {[%clk 0:02:58]} 11. e4 {[%clk 0:02:57]}  dxe4 {[%clk 0:02:59]} 12. Ndxe4 {[%clk 0:02:58]}  f5 {[%clk 0:03:00]} 13. Nd2 {[%clk 0:02:52]}  e5 {[%clk 0:03:01]} 14. d5 {[%clk 0:02:38]}  e4 {[%clk 0:03:00]} 15. Rae1 {[%clk 0:02:33]}  Bf6 {[%clk 0:02:55]} 16. f3 {[%clk 0:02:16]}  e3 {[%clk 0:02:54]} 17. Nb3 {[%clk 0:02:14]}  Ne5 {[%clk 0:02:32]} 18. Rxe3 {[%clk 0:01:45]}  Nxc4 {[%clk 0:02:30]} 19. Rd3 {[%clk 0:01:44]}  Qb6+ {[%clk 0:02:25]} 20. Qf2 {[%clk 0:01:30]}  Nxb2 {[%clk 0:02:24]} 21. Re3 {[%clk 0:01:03]}  Nc4 {[%clk 0:02:21]} 22. Rd3 {[%clk 0:01:03]}  Bxc3 {[%clk 0:02:16]} 23. Rxc3 {[%clk 0:00:56]}  cxd5 {[%clk 0:02:16]} 24. f4 {[%clk 0:00:53]}  Be6 {[%clk 0:02:05]} 25. Nd4 {[%clk 0:00:53]}  Bf7 {[%clk 0:01:31]} 26. Nxf5 {[%clk 0:00:50]}  Qxf2+ {[%clk 0:01:30]} 27. Kxf2 {[%clk 0:00:47]}  Rfd8 {[%clk 0:01:30]} 28. Ne7+ {[%clk 0:00:19]}  Kf8 {[%clk 0:01:29]} 29. Nxd5 {[%clk 0:00:20]}  Rxd5 {[%clk 0:01:24]} 30. Bxd5 {[%clk 0:00:21]}  Bxd5 {[%clk 0:01:23]} 31. Rd1 {[%clk 0:00:18]}  Nb6 {[%clk 0:01:11]} 32. a4 {[%clk 0:00:14]}  Bc6 {[%clk 0:01:09]} 33. a5 {[%clk 0:00:14]}  Nd5 {[%clk 0:01:08]} 34. Rc5 {[%clk 0:00:13]}  Nb4 {[%clk 0:01:04]} 35. Rd2 {[%clk 0:00:06]}  g6 {[%clk 0:00:57]} 36. Rd4 {[%clk 0:00:06]}  Na6 {[%clk 0:00:54]} 37. Rc3 {[%clk 0:00:05]}  Re8 {[%clk 0:00:52]} 38. Re3 {[%clk 0:00:04]}  Nc7 {[%clk 0:00:50]} 39. Rxe8+ {[%clk 0:00:03]}  Kxe8 {[%clk 0:00:50]} 40. Rb4 {[%clk 0:00:03]}  Nd5 {[%clk 0:00:50]} 41. Rd4 {[%clk 0:00:02]}  Ke7 {[%clk 0:00:49]} 42. g4 {[%clk 0:00:02]}  Kd6 {[%clk 0:00:48]} 43. Kg3 {[%clk 0:00:02]}  b5 {[%clk 0:00:46]} 44. Rd1 {[%clk 0:00:02]}  b4 {[%clk 0:00:46]} 45. f5 {[%clk 0:00:01]}  gxf5 {[%clk 0:00:45]} 46. gxf5 {[%clk 0:00:02]}  b3 {[%clk 0:00:46]} 47. Rb1 {[%clk 0:00:01]}  Ba4 {[%clk 0:00:45]} 0-1


[Site "https://www.chess.com"]

[Event "Titled Tuesday Blitz May 4 2021"]
[White "Sharapov, Evgeny"]
[Black "Shahade, Gregory"]
[WhiteFideId "14103133"]
[BlackFideId "2009064"]
[WhiteElo "2367"]
[BlackElo "2653"]
[Result "0-1"]
[Round "06"]
[TimeControl "180+1"]
[Date "2021.05.04"]
[WhiteClock "0:00:52"]
[BlackClock "0:00:50"]

1. c4 {[%clk 0:02:59]}  Nf6 {[%clk 0:02:59]} 2. Nc3 {[%clk 0:02:59]}  d5 {[%clk 0:02:54]} 3. cxd5 {[%clk 0:02:59]}  Nxd5 {[%clk 0:02:55]} 4. g3 {[%clk 0:02:59]}  g6 {[%clk 0:02:55]} 5. Bg2 {[%clk 0:02:59]}  Nb6 {[%clk 0:02:53]} 6. Nf3 {[%clk 0:02:59]}  Bg7 {[%clk 0:02:53]} 7. O-O {[%clk 0:02:58]}  Nc6 {[%clk 0:02:50]} 8. d3 {[%clk 0:02:56]}  O-O {[%clk 0:02:50]} 9. Be3 {[%clk 0:02:55]}  e5 {[%clk 0:02:46]} 10. Rc1 {[%clk 0:02:53]}  Nd4 {[%clk 0:02:43]} 11. Nd2 {[%clk 0:02:39]}  Re8 {[%clk 0:02:37]} 12. a3 {[%clk 0:02:37]}  c6 {[%clk 0:02:35]} 13. Nde4 {[%clk 0:02:34]}  h6 {[%clk 0:02:25]} 14. Nc5 {[%clk 0:02:24]}  Nd7 {[%clk 0:02:16]} 15. Nxd7 {[%clk 0:02:22]}  Bxd7 {[%clk 0:02:14]} 16. Ne4 {[%clk 0:02:18]}  b6 {[%clk 0:02:10]} 17. h3 {[%clk 0:02:07]}  Qe7 {[%clk 0:02:06]} 18. Rc3 {[%clk 0:01:54]}  c5 {[%clk 0:01:57]} 19. Qd2 {[%clk 0:01:51]}  Kh7 {[%clk 0:01:57]} 20. Qd1 {[%clk 0:01:16]}  Rad8 {[%clk 0:01:32]} 21. Kh2 {[%clk 0:01:16]}  f5 {[%clk 0:01:17]} 22. Nd2 {[%clk 0:01:15]}  f4 {[%clk 0:01:07]} 23. Bxd4 {[%clk 0:01:03]}  exd4 {[%clk 0:01:07]} 24. Rc2 {[%clk 0:00:54]}  Qxe2 {[%clk 0:01:04]} 25. Ne4 {[%clk 0:00:53]}  Qxd1 {[%clk 0:00:51]} 26. Rxd1 {[%clk 0:00:52]}  Ba4 {[%clk 0:00:50]} 0-1


[Site "https://www.chess.com"]